[Event "*** SCC Grand Prix: Titled Tuesday Blitz"]
[Site "Chess.com"]
[Date "2020.07.21"]
[Round "2"]
[White "tylityli"]
[Black "if_name_main_a"]
[Result "0-1"]
[WhiteElo "2130"]
[BlackElo "2407"]
[TimeControl "180+1"]
[EndTime "10:17:49 PDT"]
[Termination "if_name_main_a won by resignation"]

1. d4 {[%clk 0:03:00.9]} 1... Nf6 {[%clk 0:02:57.6]} 2. c4 {[%clk 0:03:00.9]}
2... e6 {[%clk 0:02:58]} 3. Nc3 {[%clk 0:03:01.1]} 3... Bb4 {[%clk 0:02:58.7]}
4. e3 {[%clk 0:03:01.2]} 4... b6 {[%clk 0:02:57.5]} 5. Ne2 {[%clk 0:03:01.3]}
5... Ne4 {[%clk 0:02:57.4]} 6. Qc2 {[%clk 0:03:00.6]} 6... Bb7 {[%clk
0:02:57.8]} 7. a3 {[%clk 0:03:00.4]} 7... Bxc3+ {[%clk 0:02:56.2]} 8. Nxc3
{[%clk 0:02:59.8]} 8... Nxc3 {[%clk 0:02:56.6]} 9. Qxc3 {[%clk 0:02:59.5]} 9...
O-O {[%clk 0:02:57.3]} 10. Bd3 {[%clk 0:02:59.5]} 10... Bxg2 {[%clk 0:02:43.5]}
11. Rg1 {[%clk 0:02:59]} 11... Bf3 {[%clk 0:02:43.9]} 12. Rg3 {[%clk 0:02:58.1]}
12... Bh5 {[%clk 0:02:44]} 13. e4 {[%clk 0:02:47.9]} 13... d6 {[%clk 0:02:30.6]}
14. Bg5 {[%clk 0:02:40.4]} 14... Qe8 {[%clk 0:02:24.1]} 15. f3 {[%clk
0:02:29.4]} 15... Nc6 {[%clk 0:01:56.7]} 16. O-O-O {[%clk 0:02:27.6]} 16... e5
{[%clk 0:01:57.1]} 17. d5 {[%clk 0:02:23.6]} 17... Ne7 {[%clk 0:01:41.7]} 18.
Rdg1 {[%clk 0:02:18.6]} 18... Bg6 {[%clk 0:01:40]} 19. h4 {[%clk 0:02:11.2]}
19... f6 {[%clk 0:01:39.5]} 20. Be3 {[%clk 0:02:07.3]} 20... Kh8 {[%clk
0:01:34.8]} 21. f4 {[%clk 0:01:59.6]} 21... exf4 {[%clk 0:01:26.9]} 22. Bxf4
{[%clk 0:01:59.5]} 22... Rg8 {[%clk 0:01:19]} 23. Kb1 {[%clk 0:01:39.9]} 23...
Qf7 {[%clk 0:01:10.6]} 24. Rh1 {[%clk 0:01:32.1]} 24... Bh5 {[%clk 0:01:10]} 25.
Rhg1 {[%clk 0:01:29.9]} 25... Ng6 {[%clk 0:01:10.4]} 26. Be3 {[%clk 0:01:21.1]}
26... Nxh4 {[%clk 0:00:57.9]} 27. Rh3 {[%clk 0:01:13.9]} 27... Nf3 {[%clk
0:00:55.9]} 28. Rgh1 {[%clk 0:01:12.5]} 28... g6 {[%clk 0:00:51.5]} 29. Be2
{[%clk 0:00:56.8]} 29... Qe7 {[%clk 0:00:50.5]} 30. Bxf3 {[%clk 0:00:54.6]}
30... Bxf3 {[%clk 0:00:50.8]} 31. Rxf3 {[%clk 0:00:53.3]} 31... Qxe4+ {[%clk
0:00:51]} 32. Ka2 {[%clk 0:00:42.2]} 32... Qxf3 {[%clk 0:00:51.9]} 33. Rh2
{[%clk 0:00:40.1]} 33... Rae8 {[%clk 0:00:34.1]} 34. Bd4 {[%clk 0:00:15]} 34...
Qxc3 {[%clk 0:00:34.1]} 35. Bxc3 {[%clk 0:00:15.5]} 35... Rgf8 {[%clk
0:00:33.9]} 36. Rf2 {[%clk 0:00:15]} 36... Kg7 {[%clk 0:00:34.3]} 37. b4 {[%clk
0:00:15.4]} 37... Re4 {[%clk 0:00:33.3]} 38. Kb3 {[%clk 0:00:15.1]} 38... h5
{[%clk 0:00:30.3]} 39. a4 {[%clk 0:00:15.2]} 39... h4 {[%clk 0:00:30.5]} 40. a5
{[%clk 0:00:14.6]} 40... g5 {[%clk 0:00:28.9]} 41. Rg2 {[%clk 0:00:12.8]} 41...
g4 {[%clk 0:00:29]} 42. Kc2 {[%clk 0:00:11.1]} 42... h3 {[%clk 0:00:29]} 43. Rh2
{[%clk 0:00:09.8]} 43... Rfe8 {[%clk 0:00:27.5]} 44. Kd3 {[%clk 0:00:09.3]}
44... Re3+ {[%clk 0:00:27.1]} 45. Kd2 {[%clk 0:00:09.6]} 45... Re2+ {[%clk
0:00:23.1]} 46. Rxe2 {[%clk 0:00:09.2]} 46... Rxe2+ {[%clk 0:00:24]} 47. Kxe2
{[%clk 0:00:10.1]} 47... h2 {[%clk 0:00:24.9]} 0-1

[Event "*** SCC Grand Prix: Titled Tuesday Blitz"]
[Site "Chess.com"]
[Date "2020.07.21"]
[Round "2"]
[White "ajian"]
[Black "MihailNik"]
[Result "0-1"]
[WhiteElo "2422"]
[BlackElo "2672"]
[TimeControl "180+1"]
[EndTime "10:17:50 PDT"]
[Termination "MihailNik won on time"]

1. Nf3 {[%clk 0:03:00.9]} 1... Nf6 {[%clk 0:03:00]} 2. b3 {[%clk 0:03:01.1]}
2... d5 {[%clk 0:02:59.6]} 3. Bb2 {[%clk 0:03:01.2]} 3... Bf5 {[%clk 0:03:00.3]}
4. e3 {[%clk 0:03:01]} 4... e6 {[%clk 0:03:00.6]} 5. c4 {[%clk 0:03:00.6]} 5...
c6 {[%clk 0:02:59.5]} 6. Be2 {[%clk 0:02:56.1]} 6... h6 {[%clk 0:02:58.5]} 7.
O-O {[%clk 0:02:55.7]} 7... Nbd7 {[%clk 0:02:58.6]} 8. Nc3 {[%clk 0:02:55.9]}
8... Bd6 {[%clk 0:02:57.9]} 9. Rc1 {[%clk 0:02:52.6]} 9... O-O {[%clk 0:02:57]}
10. d4 {[%clk 0:02:47.1]} 10... Qe7 {[%clk 0:02:52.1]} 11. Bd3 {[%clk
0:02:40.6]} 11... Bg4 {[%clk 0:02:49.1]} 12. h3 {[%clk 0:02:39.8]} 12... Bh5
{[%clk 0:02:49.3]} 13. Be2 {[%clk 0:02:28]} 13... Rae8 {[%clk 0:02:43.4]} 14.
Ne5 {[%clk 0:02:15.8]} 14... Bxe2 {[%clk 0:02:34.2]} 15. Nxe2 {[%clk 0:02:15]}
15... Bxe5 {[%clk 0:02:33.5]} 16. dxe5 {[%clk 0:02:14.9]} 16... Ne4 {[%clk
0:02:34.1]} 17. f3 {[%clk 0:02:00.3]} 17... Ng5 {[%clk 0:02:32.8]} 18. Nf4
{[%clk 0:01:54]} 18... Rd8 {[%clk 0:02:29.3]} 19. Qe2 {[%clk 0:01:40.2]} 19...
dxc4 {[%clk 0:02:18.5]} 20. Rxc4 {[%clk 0:01:28.3]} 20... Nb6 {[%clk 0:02:18.2]}
21. Rd4 {[%clk 0:01:20.9]} 21... Nd5 {[%clk 0:02:14.5]} 22. Nxd5 {[%clk
0:01:18.5]} 22... exd5 {[%clk 0:02:14.2]} 23. Rd2 {[%clk 0:01:09.4]} 23... Rfe8
{[%clk 0:02:07.7]} 24. Rc1 {[%clk 0:01:05]} 24... Ne6 {[%clk 0:02:07.4]} 25. f4
{[%clk 0:01:01.2]} 25... g6 {[%clk 0:01:58.2]} 26. Qg4 {[%clk 0:00:55.4]} 26...
h5 {[%clk 0:01:55.7]} 27. Qg3 {[%clk 0:00:54]} 27... Ng7 {[%clk 0:01:55.5]} 28.
Qf3 {[%clk 0:00:51.2]} 28... h4 {[%clk 0:01:52.1]} 29. Rcd1 {[%clk 0:00:43.9]}
29... Nf5 {[%clk 0:01:49.5]} 30. e4 {[%clk 0:00:41.5]} 30... dxe4 {[%clk
0:01:49.6]} 31. Qxe4 {[%clk 0:00:40.8]} 31... Ng3 {[%clk 0:01:36.1]} 32. Qc4
{[%clk 0:00:36.3]} 32... Rxd2 {[%clk 0:01:35]} 33. Rxd2 {[%clk 0:00:35.5]} 33...
Rd8 {[%clk 0:01:33.7]} 34. Bc3 {[%clk 0:00:16.7]} 34... Rxd2 {[%clk 0:01:31.1]}
35. Bxd2 {[%clk 0:00:17.6]} 35... Qd7 {[%clk 0:01:31.4]} 36. Qc2 {[%clk
0:00:04.9]} 36... Qd5 {[%clk 0:01:27.6]} 37. Be1 {[%clk 0:00:02.6]} 37... Nf5
{[%clk 0:01:25.5]} 38. Bf2 {[%clk 0:00:02.4]} 38... b6 {[%clk 0:01:23.5]} 39.
Kh2 {[%clk 0:00:02.7]} 39... c5 {[%clk 0:01:22.4]} 40. Qe2 {[%clk 0:00:03.1]}
40... Kf8 {[%clk 0:01:10.5]} 41. Qg4 {[%clk 0:00:03.3]} 41... Qd8 {[%clk
0:01:06]} 42. Qf3 {[%clk 0:00:03.5]} 42... Kg7 {[%clk 0:01:04.8]} 43. Qg4 {[%clk
0:00:03.5]} 43... Kg8 {[%clk 0:01:01.1]} 44. Be1 {[%clk 0:00:03.7]} 44... Qe7
{[%clk 0:00:55.8]} 45. Bc3 {[%clk 0:00:03.5]} 45... Qe6 {[%clk 0:00:53.9]} 46.
Be1 {[%clk 0:00:03.8]} 46... b5 {[%clk 0:00:51.8]} 47. Bxh4 {[%clk 0:00:03.8]}
47... c4 {[%clk 0:00:41]} 48. bxc4 {[%clk 0:00:04]} 48... bxc4 {[%clk
0:00:41.9]} 49. Bf6 {[%clk 0:00:03.6]} 49... c3 {[%clk 0:00:38.4]} 50. Qd1
{[%clk 0:00:03.9]} 50... Qc8 {[%clk 0:00:37.7]} 51. Qd3 {[%clk 0:00:04.3]} 51...
c2 {[%clk 0:00:35.4]} 0-1

[Event "*** SCC Grand Prix: Titled Tuesday Blitz"]
[Site "Chess.com"]
[Date "2020.07.21"]
[Round "2"]
[White "ChronicUnhappiness"]
[Black "rududuyk"]
[Result "1/2-1/2"]
[WhiteElo "2373"]
[BlackElo "2070"]
[TimeControl "180+1"]
[EndTime "10:17:51 PDT"]
[Termination "Game drawn by repetition"]

1. d4 {[%clk 0:03:00.9]} 1... e6 {[%clk 0:02:35.1]} 2. c4 {[%clk 0:02:58.2]}
2... f5 {[%clk 0:02:34.8]} 3. Nf3 {[%clk 0:02:57.5]} 3... Nf6 {[%clk 0:02:35.2]}
4. g3 {[%clk 0:02:58.4]} 4... Be7 {[%clk 0:02:35.4]} 5. Bg2 {[%clk 0:02:59.3]}
5... O-O {[%clk 0:02:35.3]} 6. O-O {[%clk 0:03:00.2]} 6... d6 {[%clk 0:02:34.9]}
7. Nc3 {[%clk 0:02:58.3]} 7... Ne4 {[%clk 0:02:34.5]} 8. Qc2 {[%clk 0:02:56.2]}
8... Nxc3 {[%clk 0:02:33.8]} 9. Qxc3 {[%clk 0:02:56.6]} 9... a5 {[%clk
0:02:34.2]} 10. b3 {[%clk 0:02:56.6]} 10... Nc6 {[%clk 0:02:22.5]} 11. Bb2
{[%clk 0:02:55.7]} 11... Bf6 {[%clk 0:02:22.1]} 12. e3 {[%clk 0:02:55.5]} 12...
e5 {[%clk 0:02:20.9]} 13. dxe5 {[%clk 0:02:48]} 13... dxe5 {[%clk 0:02:21.8]}
14. Rad1 {[%clk 0:02:39.2]} 14... Qe8 {[%clk 0:02:21.2]} 15. Qc1 {[%clk
0:02:21]} 15... Be6 {[%clk 0:02:16]} 16. h4 {[%clk 0:02:17.2]} 16... Qh5 {[%clk
0:02:07.6]} 17. Qa1 {[%clk 0:01:57.9]} 17... f4 {[%clk 0:01:55.8]} 18. exf4
{[%clk 0:01:57.4]} 18... exf4 {[%clk 0:01:54]} 19. Bxf6 {[%clk 0:01:53.2]} 19...
Rxf6 {[%clk 0:01:53.6]} 20. Ng5 {[%clk 0:01:35.9]} 20... f3 {[%clk 0:01:30.8]}
21. Bh1 {[%clk 0:01:35.7]} 21... Nb4 {[%clk 0:00:48]} 22. Rfe1 {[%clk
0:01:27.1]} 22... Nc2 {[%clk 0:00:44.3]} 23. Qc3 {[%clk 0:01:21.2]} 23... Nxe1
{[%clk 0:00:42.9]} 24. Rxe1 {[%clk 0:01:22.1]} 24... Bg4 {[%clk 0:00:37.1]} 25.
Qe5 {[%clk 0:01:16.6]} 25... h6 {[%clk 0:00:20.1]} 26. Qd5+ {[%clk 0:01:16.1]}
26... Kh8 {[%clk 0:00:15.4]} 27. Qxb7 {[%clk 0:01:15.8]} 27... Raf8 {[%clk
0:00:13.7]} 28. Ne4 {[%clk 0:00:49.1]} 28... Re6 {[%clk 0:00:13.8]} 29. Rc1
{[%clk 0:00:38.8]} 29... Rfe8 {[%clk 0:00:13.5]} 30. Nc3 {[%clk 0:00:30.9]}
30... Re1+ {[%clk 0:00:13.2]} 31. Rxe1 {[%clk 0:00:31.2]} 31... Rxe1+ {[%clk
0:00:13.9]} 32. Kh2 {[%clk 0:00:31.7]} 32... Qe8 {[%clk 0:00:13.1]} 33. Bxf3
{[%clk 0:00:26.3]} 33... Bxf3 {[%clk 0:00:11]} 34. Qxf3 {[%clk 0:00:27.2]} 34...
Qe5 {[%clk 0:00:10.2]} 35. Nd5 {[%clk 0:00:25.1]} 35... Qa1 {[%clk 0:00:08.9]}
36. Qf8+ {[%clk 0:00:22]} 36... Kh7 {[%clk 0:00:08.7]} 37. Qf5+ {[%clk
0:00:22.4]} 37... Kh8 {[%clk 0:00:09.1]} 38. Nf4 {[%clk 0:00:14.5]} 38... Rh1+
{[%clk 0:00:07.6]} 39. Kg2 {[%clk 0:00:14.8]} 39... Qf1+ {[%clk 0:00:06.4]} 40.
Kf3 {[%clk 0:00:15]} 40... Qd1+ {[%clk 0:00:06.2]} 41. Ne2 {[%clk 0:00:12.8]}
41... Re1 {[%clk 0:00:05.1]} 42. Qf8+ {[%clk 0:00:12.7]} 42... Kh7 {[%clk
0:00:05]} 43. Qf5+ {[%clk 0:00:12.8]} 43... Kh8 {[%clk 0:00:05.3]} 44. Qc8+
{[%clk 0:00:10.8]} 44... Kh7 {[%clk 0:00:05.1]} 45. Qf5+ {[%clk 0:00:10.4]}
45... Kh8 {[%clk 0:00:05.4]} 1/2-1/2

[Event "*** SCC Grand Prix: Titled Tuesday Blitz"]
[Site "Chess.com"]
[Date "2020.07.21"]
[Round "2"]
[White "capatl"]
[Black "Panterov"]
[Result "1/2-1/2"]
[WhiteElo "2403"]
[BlackElo "2150"]
[TimeControl "180+1"]
[EndTime "10:17:52 PDT"]
[Termination "Game drawn by agreement"]

1. c4 {[%clk 0:03:00.9]} 1... c5 {[%clk 0:02:52]} 2. Nc3 {[%clk 0:03:01.1]} 2...
Nc6 {[%clk 0:02:51.8]} 3. g3 {[%clk 0:03:01.7]} 3... b6 {[%clk 0:02:51.6]} 4.
Bg2 {[%clk 0:03:02.3]} 4... Bb7 {[%clk 0:02:52]} 5. Nf3 {[%clk 0:03:02.1]} 5...
g6 {[%clk 0:02:52.5]} 6. O-O {[%clk 0:03:02.8]} 6... Bg7 {[%clk 0:02:52.9]} 7.
d3 {[%clk 0:02:59.5]} 7... e6 {[%clk 0:02:52]} 8. Bd2 {[%clk 0:02:59.8]} 8...
Nge7 {[%clk 0:02:52]} 9. Qc1 {[%clk 0:02:59.1]} 9... O-O {[%clk 0:02:52.1]} 10.
Bh6 {[%clk 0:02:59]} 10... Re8 {[%clk 0:02:52.5]} 11. Ne4 {[%clk 0:02:48.3]}
11... d5 {[%clk 0:02:49]} 12. Nc3 {[%clk 0:02:32.1]} 12... Bh8 {[%clk
0:02:45.6]} 13. Bg5 {[%clk 0:02:27.9]} 13... Qd7 {[%clk 0:02:39.9]} 14. Rb1
{[%clk 0:02:23.9]} 14... dxc4 {[%clk 0:02:35]} 15. dxc4 {[%clk 0:02:23.5]} 15...
Nd4 {[%clk 0:02:35.2]} 16. Nxd4 {[%clk 0:02:17.9]} 16... cxd4 {[%clk 0:02:31.1]}
17. Ne4 {[%clk 0:02:10.5]} 17... Bxe4 {[%clk 0:02:16.8]} 18. Bxe4 {[%clk
0:02:11.4]} 18... Rac8 {[%clk 0:02:16.2]} 19. b3 {[%clk 0:02:05.9]} 19... Nf5
{[%clk 0:02:15.9]} 20. Rd1 {[%clk 0:01:56.1]} 20... e5 {[%clk 0:02:14.6]} 21.
Qa3 {[%clk 0:01:49.9]} 21... Nd6 {[%clk 0:02:09.4]} 22. Bd5 {[%clk 0:01:48.3]}
22... Bg7 {[%clk 0:02:00.4]} 23. Bd2 {[%clk 0:01:34.6]} 23... e4 {[%clk
0:01:59.3]} 24. Bf4 {[%clk 0:01:21.9]} 24... Nf5 {[%clk 0:01:54.9]} 25. Rbc1
{[%clk 0:01:14.2]} 25... e3 {[%clk 0:01:27.8]} 26. fxe3 {[%clk 0:00:58.6]} 26...
Nxe3 {[%clk 0:01:24.3]} 27. Bxe3 {[%clk 0:00:56.3]} 27... Rxe3 {[%clk
0:01:23.3]} 28. Rc2 {[%clk 0:00:51.8]} 28... Kh8 {[%clk 0:01:19]} 29. Rf1 {[%clk
0:00:50.2]} 29... f5 {[%clk 0:01:18.8]} 30. Rd2 {[%clk 0:00:49.3]} 30... Rce8
{[%clk 0:01:18.5]} 31. Rf2 {[%clk 0:00:37.5]} 31... h5 {[%clk 0:01:15.2]} 32.
Qc1 {[%clk 0:00:34.3]} 32... Qd6 {[%clk 0:01:12.2]} 33. Qd1 {[%clk 0:00:32.8]}
33... Qc5 {[%clk 0:01:10.7]} 34. Kg2 {[%clk 0:00:29.3]} 34... R8e5 {[%clk
0:01:09.2]} 35. Bf3 {[%clk 0:00:27.4]} 35... Re8 {[%clk 0:01:06.3]} 36. Rd3
{[%clk 0:00:26.4]} 36... Qe5 {[%clk 0:01:06.1]} 37. Rxe3 {[%clk 0:00:26.3]}
37... dxe3 {[%clk 0:01:03.4]} 38. Rf1 {[%clk 0:00:26.2]} 38... Qe7 {[%clk
0:01:02]} 39. Qd3 {[%clk 0:00:25.5]} 39... Rd8 {[%clk 0:01:01.4]} 40. Bd5 {[%clk
0:00:25.9]} 40... Qe5 {[%clk 0:00:58.8]} 41. Rf3 {[%clk 0:00:26]} 41... Bh6
{[%clk 0:00:58.6]} 42. a4 {[%clk 0:00:23.7]} 42... a5 {[%clk 0:00:57.6]} 43. Rf1
{[%clk 0:00:22.7]} 43... Bg7 {[%clk 0:00:55.4]} 44. Rd1 {[%clk 0:00:22.6]} 44...
Qc3 {[%clk 0:00:52.9]} 45. Qxc3 {[%clk 0:00:22.7]} 45... Bxc3 {[%clk 0:00:52.4]}
46. Rd3 {[%clk 0:00:23.6]} 46... Bd2 {[%clk 0:00:52.6]} 47. Kf3 {[%clk 0:00:24]}
47... Kg7 {[%clk 0:00:52.8]} 48. Bc6 {[%clk 0:00:23.8]} 48... Rxd3 {[%clk
0:00:51.4]} 49. exd3 {[%clk 0:00:24.7]} 49... Kf6 {[%clk 0:00:51.6]} 50. d4
{[%clk 0:00:24.9]} 50... g5 {[%clk 0:00:50.1]} 51. Ke2 {[%clk 0:00:23.2]} 51...
f4 {[%clk 0:00:48.5]} 52. Be8 {[%clk 0:00:22]} 52... fxg3 {[%clk 0:00:47.3]} 53.
hxg3 {[%clk 0:00:22.1]} 53... h4 {[%clk 0:00:48.2]} 54. gxh4 {[%clk 0:00:22.4]}
54... gxh4 {[%clk 0:00:48.6]} 55. Bd7 {[%clk 0:00:23.3]} 55... Ke7 {[%clk
0:00:47.3]} 56. Bh3 {[%clk 0:00:22.5]} 56... Kd6 {[%clk 0:00:47.5]} 57. Kf3
{[%clk 0:00:21.3]} 57... Bc1 {[%clk 0:00:47.3]} 58. Bf1 {[%clk 0:00:20.6]} 58...
Bd2 {[%clk 0:00:46.6]} 59. Ke2 {[%clk 0:00:18.8]} 59... Bc1 {[%clk 0:00:46.6]}
60. Kd3 {[%clk 0:00:19.2]} 60... Bd2 {[%clk 0:00:46.1]} 61. Bh3 {[%clk 0:00:20]}
61... Bc1 {[%clk 0:00:46.3]} 62. Bg2 {[%clk 0:00:19.6]} 1/2-1/2

[Event "*** SCC Grand Prix: Titled Tuesday Blitz"]
[Site "Chess.com"]
[Date "2020.07.21"]
[Round "2"]
[White "ErikRonka"]
[Black "chessdjw"]
[Result "1-0"]
[WhiteElo "2363"]
[BlackElo "2681"]
[TimeControl "180+1"]
[EndTime "10:17:54 PDT"]
[Termination "ErikRonka won by resignation"]

1. e4 {[%clk 0:03:00.9]} 1... c5 {[%clk 0:02:53]} 2. Nf3 {[%clk 0:03:00.9]} 2...
d6 {[%clk 0:02:42]} 3. Bb5+ {[%clk 0:03:00.3]} 3... Nd7 {[%clk 0:02:40.6]} 4. d4
{[%clk 0:03:00]} 4... cxd4 {[%clk 0:02:37.8]} 5. Qxd4 {[%clk 0:03:00.9]} 5... a6
{[%clk 0:02:37.8]} 6. Bxd7+ {[%clk 0:03:01.1]} 6... Bxd7 {[%clk 0:02:38.7]} 7.
c4 {[%clk 0:03:01.7]} 7... e5 {[%clk 0:02:36.1]} 8. Qd3 {[%clk 0:03:01.7]} 8...
b5 {[%clk 0:02:36.3]} 9. Nc3 {[%clk 0:03:00.7]} 9... bxc4 {[%clk 0:02:21.7]} 10.
Qxc4 {[%clk 0:03:00.6]} 10... h6 {[%clk 0:02:17.9]} 11. Nd5 {[%clk 0:02:21.3]}
11... Rc8 {[%clk 0:02:13.8]} 12. Qxa6 {[%clk 0:02:12.8]} 12... Ne7 {[%clk
0:02:13.4]} 13. Nxe7 {[%clk 0:01:58.6]} 13... Bxe7 {[%clk 0:02:14.3]} 14. O-O
{[%clk 0:01:52]} 14... O-O {[%clk 0:02:12.7]} 15. Be3 {[%clk 0:01:43.9]} 15...
Rb8 {[%clk 0:02:06.6]} 16. Rfd1 {[%clk 0:01:17.7]} 16... Rxb2 {[%clk 0:01:51.1]}
17. Nxe5 {[%clk 0:01:05.2]} 17... Bb5 {[%clk 0:01:20.5]} 18. Qa3 {[%clk
0:00:58.3]} 18... Rc2 {[%clk 0:01:19.3]} 19. Qb3 {[%clk 0:00:49.1]} 19... Qc7
{[%clk 0:01:11.8]} 20. Nxf7 {[%clk 0:00:36.8]} 20... Rxf7 {[%clk 0:01:08.2]} 21.
Qxb5 {[%clk 0:00:36.4]} 21... Bg5 {[%clk 0:00:56.3]} 22. Bxg5 {[%clk 0:00:28.5]}
22... Rfxf2 {[%clk 0:00:50.6]} 23. Qd5+ {[%clk 0:00:15.6]} 23... Kh8 {[%clk
0:00:44.1]} 24. Rd2 {[%clk 0:00:06.9]} 24... Qa7 {[%clk 0:00:25.1]} 25. Kh1
{[%clk 0:00:03.2]} 25... hxg5 {[%clk 0:00:20.5]} 26. Rxf2 {[%clk 0:00:03.2]}
26... Qxf2 {[%clk 0:00:19.9]} 27. Qxg5 {[%clk 0:00:03.5]} 27... Rxa2 {[%clk
0:00:16.7]} 28. Qh5+ {[%clk 0:00:03.7]} 28... Kg8 {[%clk 0:00:16.2]} 29. Qe8+
{[%clk 0:00:04.6]} 29... Kh7 {[%clk 0:00:15.6]} 30. Qh5+ {[%clk 0:00:05]} 30...
Kg8 {[%clk 0:00:16.3]} 31. Qd5+ {[%clk 0:00:05.6]} 31... Kh7 {[%clk 0:00:15.1]}
32. Qxa2 {[%clk 0:00:06.5]} 32... Qd4 {[%clk 0:00:13.4]} 33. Rb1 {[%clk
0:00:06.2]} 33... Qxe4 {[%clk 0:00:13.4]} 34. Qb2 {[%clk 0:00:06.5]} 34... d5
{[%clk 0:00:13.2]} 35. h3 {[%clk 0:00:06.9]} 35... d4 {[%clk 0:00:13.5]} 36. Rd1
{[%clk 0:00:07.2]} 36... d3 {[%clk 0:00:11]} 37. Qd2 {[%clk 0:00:07.5]} 37... g6
{[%clk 0:00:08.9]} 38. Qxd3 {[%clk 0:00:07.7]} 38... Qf4 {[%clk 0:00:08.7]} 39.
Qd7+ {[%clk 0:00:07.5]} 39... Kh6 {[%clk 0:00:08.3]} 40. Qd2 {[%clk 0:00:07.2]}
40... Kh5 {[%clk 0:00:06.9]} 41. Qxf4 {[%clk 0:00:06.5]} 1-0

[Event "*** SCC Grand Prix: Titled Tuesday Blitz"]
[Site "Chess.com"]
[Date "2020.07.21"]
[Round "2"]
[White "LPSupi"]
[Black "SCIM"]
[Result "1-0"]
[WhiteElo "2872"]
[BlackElo "2568"]
[TimeControl "180+1"]
[EndTime "10:17:55 PDT"]
[Termination "LPSupi won by resignation"]

1. d4 {[%clk 0:02:58.2]} 1... Nf6 {[%clk 0:02:59.3]} 2. c4 {[%clk 0:02:58.2]}
2... g6 {[%clk 0:02:59.6]} 3. g3 {[%clk 0:02:57.8]} 3... d5 {[%clk 0:02:58.1]}
4. cxd5 {[%clk 0:02:57.1]} 4... Nxd5 {[%clk 0:02:59]} 5. Bg2 {[%clk 0:02:57.7]}
5... Bg7 {[%clk 0:02:58.4]} 6. Nf3 {[%clk 0:02:58.2]} 6... O-O {[%clk
0:02:57.3]} 7. O-O {[%clk 0:02:58.7]} 7... Nc6 {[%clk 0:02:55.3]} 8. e4 {[%clk
0:02:57.2]} 8... Nb6 {[%clk 0:02:54.6]} 9. d5 {[%clk 0:02:57.6]} 9... Na5 {[%clk
0:02:53]} 10. Nc3 {[%clk 0:02:07.5]} 10... c6 {[%clk 0:02:49.4]} 11. Bg5 {[%clk
0:02:07.5]} 11... Nac4 {[%clk 0:02:41.5]} 12. Qb3 {[%clk 0:01:58]} 12... h6
{[%clk 0:02:29.4]} 13. Bf4 {[%clk 0:01:53.9]} 13... cxd5 {[%clk 0:02:25.9]} 14.
Nxd5 {[%clk 0:01:45.7]} 14... Nxd5 {[%clk 0:02:18.1]} 15. exd5 {[%clk
0:01:45.8]} 15... Nd6 {[%clk 0:01:59.4]} 16. Rfe1 {[%clk 0:01:39.1]} 16... Bf5
{[%clk 0:01:57.2]} 17. Be5 {[%clk 0:01:35.8]} 17... Rc8 {[%clk 0:01:49.7]} 18.
Bxg7 {[%clk 0:01:33.9]} 18... Kxg7 {[%clk 0:01:50.6]} 19. Nd4 {[%clk 0:01:28.8]}
19... Bd7 {[%clk 0:01:50.4]} 20. Re2 {[%clk 0:01:26.5]} 20... Rc4 {[%clk
0:01:36.4]} 21. Qe3 {[%clk 0:01:21.5]} 21... Bg4 {[%clk 0:01:17.3]} 22. Rd2
{[%clk 0:00:42.8]} 22... Kg8 {[%clk 0:01:00.9]} 23. b3 {[%clk 0:00:40.7]} 23...
Rc7 {[%clk 0:00:54.7]} 24. Qxh6 {[%clk 0:00:40.4]} 24... Nf5 {[%clk 0:00:49.7]}
25. Qf4 {[%clk 0:00:35.1]} 25... Nxd4 {[%clk 0:00:46.8]} 26. Rxd4 {[%clk
0:00:33.7]} 26... Bf5 {[%clk 0:00:18.8]} 27. Qh6 {[%clk 0:00:29.8]} 27... f6
{[%clk 0:00:18.6]} 28. d6 {[%clk 0:00:24.8]} 28... Rc5 {[%clk 0:00:13.3]} 29.
Re1 {[%clk 0:00:18.7]} 29... e5 {[%clk 0:00:12.8]} 30. Bd5+ {[%clk 0:00:18]}
30... Rxd5 {[%clk 0:00:12.1]} 31. Rxd5 {[%clk 0:00:18.9]} 31... Kf7 {[%clk
0:00:11.7]} 32. Qh7+ {[%clk 0:00:17.8]} 32... Ke6 {[%clk 0:00:12.1]} 33. Qxb7
{[%clk 0:00:17.6]} 33... Rh8 {[%clk 0:00:10.5]} 34. h4 {[%clk 0:00:13.6]} 34...
Bg4 {[%clk 0:00:09.8]} 35. Rd2 {[%clk 0:00:10.3]} 35... Qa5 {[%clk 0:00:06.8]}
36. b4 {[%clk 0:00:09.5]} 36... Qd8 {[%clk 0:00:05.9]} 37. Qd5+ {[%clk
0:00:09.5]} 37... Kd7 {[%clk 0:00:05.3]} 38. Qf7+ {[%clk 0:00:10.4]} 38... Kc8
{[%clk 0:00:04.5]} 39. Rc1+ {[%clk 0:00:10.4]} 39... Kb8 {[%clk 0:00:04.9]} 40.
Qc7+ {[%clk 0:00:10.7]} 40... Qxc7 {[%clk 0:00:04.8]} 41. dxc7+ {[%clk
0:00:11.6]} 41... Kc8 {[%clk 0:00:05.5]} 42. Rd8+ {[%clk 0:00:12.4]} 42... Rxd8
{[%clk 0:00:05.5]} 43. cxd8=Q+ {[%clk 0:00:13.3]} 43... Kxd8 {[%clk 0:00:06.1]}
44. Rc6 {[%clk 0:00:14.2]} 44... Ke7 {[%clk 0:00:05.1]} 45. Ra6 {[%clk
0:00:14.3]} 1-0